bitfinex/quotes_SOLUSD_20240626
["timestamp","ask_amount","ask_price","bid_price","bid_amount"]
[1719420023935,7.3235,136.55,136.51,34.4154]
[1719420024241,27.09,136.55,136.49,49.2383]
[1719420024425,66.4366207,136.6,136.49,33.0954]
[1719420024630,66.4366207,136.6,136.47,34.4172]
[1719420024631,7.3256,136.51,136.47,34.4172]
[1719420025025,7.3245,136.53,136.49,7.3264]
[1719420025445,20.0,136.52,136.49,7.3264]
[1719420027324,27.3249,136.52,136.48,52.7341]
[1719420027944,27.3249,136.52,136.46,49.4083]
[1719420027945,20.0,136.52,136.46,49.4083]
[1719420028145,7.3255,136.51,136.47,7.3272]
[1719420028455,7.3249,136.52,136.48,7.3268]
[1719420028641,20.0,136.51,136.48,7.3268]
[1719420029147,20.0,136.51,136.5,7.326]
[1719420030045,7.3233,136.56,136.51,7.3252]
[1719420030250,27.3233,136.55,136.51,7.3252]
[1719420033352,7.3239,136.54,136.5,52.7293]
[1719420033541,7.3249,136.52,136.48,34.4167]
[1719420033734,7.3249,136.52,136.48,7.3267]
[1719420034151,7.3245,136.53,136.49,7.3263]
[1719420034453,20.0,136.52,136.49,25.6425]
[1719420036556,20.0,136.52,136.5,7.3259]
[1719420037045,20.0,136.53,136.5,7.3259]
[1719420038441,27.3244,136.53,136.5,7.3259]
[1719420039859,27.3244,136.53,136.49,25.6425]
[1719420040344,7.3249,136.52,136.48,7.327]
[1719420041662,20.0,136.53,136.47,18.3189]
[1719420041663,7.3255,136.51,136.47,18.3189]
[1719420041866,20.0,136.5,136.47,25.6464]
[1719420042363,27.326,136.5,136.46,7.328]
[1719420042687,20.0,136.5,136.47,7.3275]
[1719420043539,27.326,136.5,136.47,7.3275]
[1719420043736,20.0,136.5,136.47,7.3275]
[1719420043972,20.0,136.5,136.48,7.327]
[1719420044267,20.0,136.51,136.49,7.3264]
[1719420044658,27.3255,136.51,136.47,25.645]
[1719420045542,7.326,136.5,136.47,18.3177]
[1719420045745,7.3265,136.49,136.45,7.3285]
[1719420045959,20.0,136.48,136.44,46.2633774]
[1719420046747,20.0,136.49,136.44,46.2633774]
[1719420046969,20.0,136.49,136.46,7.3281]
[1719420047268,20.0,136.49,136.47,7.3275]
[1719420047458,20.0,136.5,136.48,7.327]
[1719420047871,20.0,136.5,136.48,7.3266]
[1719420048164,7.3246,136.53,136.49,7.3264]
[1719420048377,27.3249,136.52,136.48,25.6433]
[1719420048540,20.0,136.52,136.49,7.3263]
[1719420049356,27.3249,136.52,136.49,7.3263]
[1719420049559,27.3249,136.52,136.48,52.7332]
[1719420049768,27.3249,136.52,136.48,25.6432]
[1719420050272,20.0,136.52,136.49,7.3264]
[1719420050851,20.0,136.52,136.51,7.3254]
[1719420051053,20.0,136.52,136.5,25.6405]
[1719420051253,20.0,136.53,136.51,7.3253]
[1719420051477,20.0,136.54,136.51,7.3253]
[1719420052156,20.0,136.54,136.52,7.3248]
[1719420052359,20.0,136.55,136.52,7.3248]
[1719420052865,20.0,136.55,136.51,34.4154]
[1719420052866,27.3233,136.55,136.51,34.4154]
[1719420053044,20.0,136.55,136.5,45.4048]
[1719420053245,20.0,136.57,136.5,18.3148]
[1719420053552,7.3241,136.54,136.5,25.6408]
[1719420054145,18.3071,136.56,136.48,49.5574]
[1719420054349,7.3249,136.52,136.48,56.8841]
[1719420054772,7.3249,136.52,136.48,29.7941]
[1719420055083,7.3249,136.52,136.49,7.3265]
[1719420055577,7.3246,136.53,136.5,7.3259]
[1719420058380,7.3246,136.53,136.49,7.3262]
[1719420058873,7.3246,136.53,136.5,7.3259]
[1719420059575,7.3241,136.54,136.5,7.3259]
[1719420059776,20.0,136.53,136.5,7.3259]
[1719420060355,20.0,136.53,136.49,7.3265]
[1719420060557,20.0,136.55,136.49,7.3265]
[1719420061194,7.3246,136.53,136.49,7.3265]
[1719420061384,20.0,136.52,136.49,7.3265]
[1719420062787,27.3252,136.52,136.48,18.3164]
[1719420063335,20.0,136.52,136.5,7.3258]
[1719420063463,20.0,136.53,136.5,7.3258]
[1719420063867,20.0,136.53,136.51,7.3254]
[1719420064072,30.0,136.52,136.51,7.3254]
[1719420064385,20.0,136.53,136.52,25.6372]
[1719420064889,20.0,136.53,136.5,7.3256]
[1719420065196,20.0,136.53,136.49,18.315]
[1719420065197,27.3245,136.53,136.49,25.6412]
[1719420065567,27.09,136.52,136.49,25.6412]
[1719420065867,34.4152,136.52,136.49,18.315]
[1719420066383,27.09,136.52,136.49,25.6415]
[1719420066991,34.415,136.52,136.49,18.315]
[1719420067193,20.0,136.53,136.46,25.6472]
[1719420067194,7.3263,136.5,136.46,25.6472]
[1719420067497,47.09,136.49,136.46,25.6472]
[1719420067799,20.0,136.49,136.43,18.323]
[1719420068096,7.328,136.47,136.43,25.6524]
[1719420068279,20.0,136.46,136.44,8.1805774]
[1719420068486,20.0,136.46,136.44,0.8513774]
[1719420068684,27.3281,136.46,136.44,0.8513774]
[1719420069600,7.3286,136.45,136.44,0.8513774]
[1719420069774,57.3286,136.45,136.44,0.8513774]
[1719420069975,50.0,136.45,136.44,0.8513774]
[1719420072404,50.0,136.45,136.44,8.1805774]
[1719420072606,20.0,136.45,136.44,8.1805774]
[1719420075281,20.0,136.45,136.44,0.8513774]
[1719420076004,20.0,136.45,136.44,8.1805774]
[1719420077307,22.296,136.51,136.44,0.8513774]
[1719420077513,23.2987,136.51,136.47,7.3275]
[1719420077683,15.9731,136.51,136.48,7.3266]
[1719420078397,7.3257,136.51,136.46,18.3203]
[1719420078891,27.326,136.5,136.46,18.3203]
[1719420079380,20.0,136.5,136.47,7.3275]
[1719420079699,20.0,136.5,136.46,25.6482]
[1719420079700,27.326,136.5,136.46,25.6482]
[1719420079899,20.0,136.5,136.45,7.3285]
[1719420080089,7.3271,136.48,136.44,8.1800774]
[1719420080297,7.3267,136.49,136.45,7.3286]
[1719420080611,20.0,136.48,136.45,7.3286]
[1719420081109,20.0,136.48,136.44,0.8513774]
[1719420081110,7.3279,136.47,136.44,0.8513774]
[1719420081415,20.0,136.46,136.44,0.8513774]
[1719420081995,20.0,136.46,136.44,8.1804774]
[1719420082208,20.0,136.47,136.44,0.8513774]
[1719420082504,20.0,136.48,136.45,7.3283]
[1719420082914,27.3271,136.48,136.44,8.1803774]
[1719420085117,7.3276,136.47,136.44,0.8513774]
[1719420085523,20.0,136.46,136.44,8.1803774]
[1719420086202,20.0,136.47,136.44,0.8513774]
[1719420086402,7.3278,136.47,136.44,0.8513774]
[1719420086600,20.0,136.46,136.44,0.8513774]
[1719420086995,20.0,136.46,136.44,8.1805774]
[1719420087197,20.0,136.47,136.44,8.1805774]
[1719420088519,20.0,136.47,136.45,7.3286]
[1719420088717,20.0,136.48,136.45,7.3286]
[1719420089022,20.0,136.48,136.45,25.6502]
[1719420089315,20.0,136.48,136.46,7.3281]
[1719420089508,20.0,136.49,136.46,7.3281]
[1719420089717,20.0,136.49,136.47,7.3275]
[1719420090208,20.0,136.49,136.46,7.328]
[1719420090596,20.0,136.49,136.47,7.3273]
[1719420090807,27.326,136.5,136.46,7.3279]
[1719420091405,7.3266,136.49,136.46,7.3279]
[1719420091598,27.3261,136.5,136.46,7.3279]
[1719420092726,47.1,136.5,136.45,23.0611]
[1719420093026,47.1,136.5,136.48,18.3175]
[1719420093230,47.1,136.5,136.49,7.3265]
[1719420093721,47.1,136.5,136.48,25.6443]
[1719420093923,47.1,136.5,136.49,7.3265]
[1719420093924,20.0,136.5,136.49,7.3265]
[1719420095521,20.0,136.5,136.48,18.3175]
[1719420096506,27.326,136.5,136.46,7.328]
[1719420097215,20.0,136.5,136.47,18.3189]
[1719420098125,20.0,136.5,136.48,7.327]
[1719420098326,20.0,136.51,136.48,7.327]
[1719420098626,27.3254,136.51,136.48,7.327]
[1719420099003,27.3254,136.51,136.47,25.6463]
[1719420099624,27.3254,136.51,136.48,7.327]
[1719420099830,27.3254,136.51,136.47,18.3189]
[1719420099831,20.0,136.51,136.49,7.3264]
[1719420100009,20.0,136.52,136.49,7.3264]
[1719420100857,27.3249,136.52,136.48,7.3268]
[1719420102231,27.3249,136.52,136.49,7.3264]
[1719420102422,20.0,136.52,136.49,7.3264]
[1719420102732,20.0,136.52,136.5,7.3256]
[1719420103033,20.0,136.52,136.5,7.3257]
[1719420103330,20.0,136.53,136.5,7.3258]
[1719420104729,27.3247,136.53,136.49,25.642]
[1719420104929,20.0,136.53,136.51,7.3251]
[1719420105232,27.3236,136.55,136.51,25.6387]
[1719420105415,20.0,136.55,136.46,57.9533]
[1719420105620,7.3247,136.53,136.49,7.3262]
[1719420105939,7.3249,136.52,136.48,25.6432]
[1719420106419,20.0,136.51,136.47,7.3276]
[1719420106733,27.3257,136.51,136.47,25.646]
[1719420106907,20.0,136.51,136.47,18.3187]
[1719420107106,7.3247,136.53,136.49,7.3262]
[1719420107305,20.0,136.52,136.49,7.3262]
[1719420109331,27.3251,136.52,136.48,7.3268]
[1719420110625,27.3251,136.52,136.49,7.3265]
[1719420110835,20.0,136.52,136.49,18.3159]
[1719420111024,7.3242,136.54,136.49,18.3159]
[1719420111214,20.0,136.53,136.5,7.3258]
[1719420111633,27.3244,136.53,136.5,7.3258]
[1719420112039,27.3244,136.53,136.49,25.6422]
[1719420112532,7.3254,136.52,136.46,103.3719]
[1719420112836,20.0,136.51,136.49,7.3264]
[1719420113424,20.0,136.52,136.49,7.3264]
[1719420116040,20.0,136.52,136.48,25.6434]
[1719420116241,38.3109,136.54,136.45,18.4905]
[1719420116735,7.3251,136.52,136.48,7.3269]
[1719420116941,20.0,136.51,136.48,7.3269]
[1719420117149,27.3254,136.51,136.47,25.6459]
[1719420117550,20.0,136.51,136.48,7.327]
[1719420117916,47.1,136.51,136.48,7.327]
[1719420118241,20.0,136.51,136.49,7.3263]
[1719420118443,20.0,136.52,136.49,7.3263]
[1719420119538,20.0,136.52,136.5,18.3147]
[1719420119744,20.0,136.54,136.5,18.3147]
[1719420120042,54.4237,136.55,136.51,7.3253]
[1719420120221,20.0,136.55,136.5,18.3147]
[1719420121318,7.3239,136.54,136.5,25.6405]
[1719420121644,20.0,136.53,136.5,25.6405]
[1719420123832,27.3243,136.53,136.5,18.3147]
[1719420124345,27.3243,136.53,136.49,7.3264]
[1719420124718,27.3243,136.53,136.48,18.3175]
[1719420124719,20.0,136.53,136.5,7.3258]
[1719420125031,27.3244,136.53,136.49,7.3263]
[1719420125851,27.3244,136.53,136.5,7.3259]
[1719420126029,20.0,136.53,136.5,7.3259]
[1719420126349,27.3245,136.53,136.49,7.3263]
[1719420127643,7.3255,136.51,136.48,18.3175]
[1719420127853,20.0,136.5,136.48,25.6445]
[1719420128315,20.0,136.51,136.49,7.3265]
[1719420128520,20.0,136.51,136.48,18.3175]
[1719420128521,20.0,136.54,136.48,18.3175]
[1719420129043,0.17,136.53,136.48,18.3175]
[1719420129546,7.3252,136.52,136.48,25.6442]
[1719420129747,20.0,136.51,136.48,25.6442]
[1719420131151,27.3254,136.51,136.47,7.3274]
[1719420132838,27.3254,136.51,136.48,7.327]
[1719420133153,20.0,136.51,136.49,7.3263]
[1719420133341,27.324,136.54,136.47,27.1]
[1719420133530,7.324,136.54,136.48,27.1]
[1719420133847,20.0,136.53,136.48,27.1]
[1719420134251,20.0,136.53,136.5,7.3258]
[1719420134951,20.0,136.53,136.51,7.3253]
[1719420135142,30.0,136.52,136.5,7.3257]
[1719420135852,20.0,136.53,136.5,7.3257]
[1719420139047,27.3245,136.53,136.49,25.6416]
[1719420139250,7.3249,136.52,136.49,18.3151]
[1719420139548,7.3249,136.52,136.49,25.6416]
[1719420141341,27.3245,136.53,136.49,25.6416]
[1719420144747,7.325,136.52,136.49,18.3151]
[1719420144951,20.0,136.51,136.48,7.327]
[1719420145753,20.0,136.51,136.49,7.3264]
[1719420145943,20.0,136.52,136.48,27.1]
[1719420146143,15.5331,136.56,136.46,36.6389]
[1719420146144,20.0,136.55,136.53,7.3243]
[1719420146343,30.0,136.54,136.53,7.3243]
[1719420146649,30.0,136.54,136.53,34.4243]
[1719420146862,259.6,136.58,136.56,18.3068]
[1719420147233,259.6,136.58,136.56,25.6293]
[1719420147437,259.6,136.58,136.57,7.3222]
[1719420147750,289.6,136.58,136.57,7.3222]
[1719420147944,259.6,136.58,136.57,7.3222]
[1719420149157,259.6,136.58,136.56,18.3068]
[1719420149631,259.6,136.58,136.56,25.6295]
[1719420152163,259.6,136.58,136.57,7.3222]
[1719420153044,259.6,136.58,136.57,34.4222]
[1719420154257,259.6,136.58,136.57,7.3222]
[1719420155551,259.6,136.58,136.56,25.6293]
[1719420155951,259.6,136.58,136.56,25.6295]
[1719420159566,259.6,136.58,136.56,18.3068]
[1719420160067,266.9218,136.58,136.54,7.3236]
[1719420160265,27.3225,136.57,136.53,25.6345]
[1719420160569,34.4228,136.56,136.53,25.6345]
[1719420160760,20.0,136.55,136.53,25.6345]
[1719420161365,20.0,136.55,136.53,18.3103]
[1719420164149,20.0,136.55,136.53,25.6346]
[1719420164358,20.0,136.56,136.53,25.6346]
[1719420164552,27.3228,136.56,136.53,18.3103]
[1719420166754,20.0,136.56,136.53,25.6346]
[1719420167649,20.0,136.56,136.51,18.3135]
[1719420167852,7.3234,136.55,136.51,18.3135]
[1719420168165,20.0,136.54,136.51,18.3135]
[1719420168566,20.0,136.55,136.52,7.3247]
[1719420168765,7.3228,136.56,136.52,7.3247]
[1719420168952,20.0,136.55,136.52,7.3247]
[1719420169474,27.3233,136.55,136.51,25.6387]
[1719420170976,20.0,136.55,136.52,7.3248]
[1719420171567,27.3233,136.55,136.52,7.3248]
[1719420172284,7.3238,136.54,136.49,18.3162]
[1719420172471,20.0,136.53,136.49,18.3162]
[1719420173083,20.0,136.53,136.5,7.3256]
[1719420173381,20.0,136.53,136.51,7.3254]
[1719420173677,20.0,136.54,136.51,7.3254]
[1719420174178,27.3238,136.54,136.5,7.3259]
[1719420174372,7.3244,136.53,136.49,25.6426]
[1719420174682,20.0,136.52,136.49,25.6426]
[1719420174870,27.1,136.51,136.49,25.6426]
[1719420175573,20.0,136.52,136.49,25.6426]
[1719420175775,20.0,136.52,136.5,7.3258]
[1719420175976,20.0,136.53,136.5,7.3258]
[1719420176282,27.3244,136.53,136.49,25.6425]
[1719420177985,20.0,136.53,136.5,7.3259]
[1719420178287,20.0,136.53,136.49,18.3162]
[1719420178288,20.0,136.53,136.51,7.3254]
[1719420178469,30.0,136.52,136.49,18.3162]
[1719420178664,20.0,136.51,136.49,18.3162]
[1719420179778,20.0,136.51,136.5,7.3259]
[1719420179982,15.1769,136.54,136.51,7.3254]
[1719420180186,20.0,136.53,136.5,7.3257]
[1719420180485,20.0,136.53,136.51,7.3254]
[1719420180678,27.3239,136.54,136.49,18.3162]
[1719420181774,27.3239,136.54,136.49,25.6425]
[1719420182281,20.0,136.54,136.5,7.3258]
[1719420182587,20.0,136.54,136.51,7.3254]
[1719420182775,20.0,136.55,136.51,7.3254]
[1719420183681,27.3234,136.55,136.5,7.3258]
[1719420184469,7.3238,136.54,136.5,7.3258]
[1719420184674,20.0,136.53,136.5,7.3258]
[1719420184882,7.3249,136.53,136.48,41.0186]
[1719420185190,27.3249,136.52,136.48,41.0186]
[1719420185366,7.3246,136.53,136.48,7.3269]
[1719420185568,20.0,136.52,136.48,7.3269]
[1719420185763,27.325,136.52,136.47,25.6462]
[1719420186269,27.325,136.52,136.48,7.3269]
[1719420187089,20.0,136.52,136.48,7.3269]
[1719420189392,27.3251,136.52,136.47,52.7462]
[1719420189690,27.3251,136.52,136.47,25.6462]
[1719420189867,20.0,136.52,136.48,7.327]
[1719420190671,27.3251,136.52,136.47,25.6463]
[1719420191094,7.3256,136.51,136.47,25.6463]
[1719420191496,7.3256,136.51,136.46,7.4979]
[1719420192195,7.3256,136.51,136.47,7.3275]
[1719420192993,27.3251,136.52,136.47,7.3275]
[1719420195978,27.3251,136.52,136.48,7.327]
[1719420196789,20.0,136.52,136.49,7.3261]
[1719420197004,7.3241,136.54,136.49,7.3261]
[1719420197294,20.0,136.53,136.49,7.3261]
[1719420197688,47.1,136.53,136.49,7.3261]
[1719420198794,20.0,136.53,136.49,7.3261]
[1719420198994,27.3244,136.53,136.49,7.3261]
[1719420199177,27.3244,136.53,136.48,25.6432]
[1719420199376,7.325,136.52,136.48,25.6432]
[1719420199567,20.0,136.51,136.48,25.6432]
[1719420199775,20.0,136.51,136.48,18.3164]
[1719420201205,27.3255,136.51,136.47,7.3273]
[1719420202886,20.0,136.51,136.47,25.6463]
[1719420203089,20.0,136.51,136.46,0.17]
[1719420203090,7.326,136.5,136.46,0.17]
[1719420203300,27.3256,136.51,136.47,7.3275]
[1719420204205,20.0,136.51,136.47,7.3275]
[1719420205697,27.3254,136.51,136.47,7.3275]
[1719420205927,20.0,136.51,136.45,18.3216]
[1719420206082,20.0,136.51,136.44,8.1801774]
[1719420206484,7.3267,136.49,136.44,8.1801774]
[1719420206685,20.0,136.48,136.44,8.1801774]
[1719420207194,20.0,136.48,136.45,7.3286]
[1719420207412,18.4823,136.52,136.45,7.3286]
[1719420207413,7.3262,136.5,136.45,7.3286]
[1719420207599,20.0,136.49,136.45,7.3286]
[1719420208293,20.0,136.49,136.44,8.1804774]
[1719420208493,20.0,136.51,136.44,8.1804774]
[1719420209501,7.3271,136.48,136.44,8.1804774]
[1719420209674,20.0,136.47,136.44,8.1804774]
[1719420210380,27.3271,136.48,136.44,8.1804774]
[1719420210787,7.3276,136.47,136.44,0.8513774]
[1719420211006,20.0,136.46,136.44,0.8513774]
[1719420211594,27.3283,136.46,136.44,0.8513774]
[1719420211979,27.1,136.45,136.44,0.8513774]
[1719420212180,20.0,136.45,136.44,0.8513774]
[1719420214604,15.4962,136.49,136.44,26.5033774]
[1719420214811,47.1,136.48,136.44,26.5033774]
[1719420215811,54.4271,136.48,136.44,26.5033774]
[1719420216509,54.4271,136.48,136.44,19.1743774]
[1719420218016,27.3271,136.48,136.44,19.1743774]
[1719420218319,27.3272,136.48,136.44,26.5032774]
[1719420218613,20.0,136.48,136.44,0.8513774]
[1719420220411,7.3286,136.45,136.44,0.8513774]
[1719420220610,27.3286,136.45,136.44,0.8513774]
[1719420222688,50.0,136.45,136.44,0.8513774]
[1719420223403,20.0,136.45,136.44,0.8513774]
[1719420227732,7.3273,136.48,136.44,0.8513774]
[1719420227897,27.3276,136.47,136.44,0.8513774]
[1719420228398,20.0,136.47,136.44,0.8513774]
[1719420228599,27.3276,136.47,136.44,0.8513774]
[1719420229022,20.0,136.47,136.44,8.1804774]
[1719420229228,20.0,136.48,136.45,7.3285]
[1719420229597,20.0,136.49,136.45,7.3285]
[1719420230327,20.0,136.51,136.45,7.3285]
[1719420230702,7.3266,136.49,136.44,26.5031774]
[1719420230904,20.0,136.48,136.44,26.5031774]
[1719420231427,27.3272,136.48,136.44,26.5031774]
[1719420231805,27.3272,136.48,136.44,19.1742774]
[1719420232009,27.3272,136.48,136.44,26.5032774]
[1719420232216,20.0,136.48,136.44,26.5032774]
[1719420232530,20.0,136.48,136.45,7.3285]
[1719420233428,20.0,136.49,136.45,7.3285]
[1719420234230,27.3266,136.49,136.45,7.3285]
[1719420234911,20.0,136.49,136.45,7.3285]
[1719420235115,27.3266,136.49,136.44,53.6032774]
[1719420236932,27.3266,136.49,136.45,7.3286]
[1719420237216,20.0,136.49,136.45,7.3286]
[1719420238013,27.3266,136.49,136.45,7.3286]
[1719420238223,27.3266,136.49,136.44,53.6031774]
[1719420238422,27.3266,136.49,136.44,26.5031774]
[1719420238619,20.0,136.49,136.47,7.3271]
[1719420238833,20.0,136.51,136.47,25.6451]
[1719420239005,47.1,136.51,136.47,25.6451]
[1719420239327,20.0,136.51,136.47,25.6451]
[1719420239707,20.0,136.51,136.48,7.327]
[1719420239911,20.0,136.52,136.49,25.6427]
[1719420240109,3.83268162,136.54,136.5,0.17]
[1719420240331,20.0,136.6,136.56,7.3227]
[1719420240511,54.4206,136.6,136.55,34.4231]
[1719420240836,7.3212,136.59,136.55,7.3232]
[1719420241133,20.0,136.58,136.55,7.3232]
[1719420241322,27.3208,136.6,136.55,7.3232]
[1719420241899,20.0,136.6,136.54,45.5783]
[1719420242103,18.2991,136.62,136.54,18.3083]
[1719420242324,20.0,136.61,136.54,18.3083]
[1719420242700,7.321,136.6,136.55,7.3232]
[1719420242903,20.0,136.59,136.55,7.3232]
[1719420244628,27.3215,136.59,136.54,25.632]
[1719420246712,7.3225,136.57,136.52,7.3247]
[1719420246918,18.301,136.61,136.51,18.3131]
[1719420246919,27.3229,136.56,136.51,18.3131]
[1719420247125,20.0,136.56,136.52,7.3248]
[1719420247716,20.0,136.56,136.51,25.6384]
[1719420247717,27.323,136.56,136.51,25.6384]
[1719420247924,27.323,136.56,136.52,7.3248]
[1719420248121,20.0,136.56,136.52,7.3248]
[1719420248911,20.0,136.56,136.53,7.3243]
[1719420249427,20.0,136.56,136.52,7.3247]
[1719420250962,27.3232,136.56,136.51,18.3131]
[1719420251119,20.0,136.56,136.52,7.3245]
[1719420251429,20.0,136.56,136.51,18.3131]
[1719420251645,30.0,136.55,136.5,7.3259]
[1719420251936,20.0,136.54,136.5,7.3259]
[1719420252732,20.0,136.54,136.51,7.3254]
[1719420253433,20.0,136.54,136.53,7.3243]
[1719420253734,20.0,136.54,136.52,7.3246]
[1719420254120,20.0,136.54,136.51,25.6388]
[1719420254827,20.0,136.54,136.52,7.3249]
[1719420255536,20.0,136.54,136.51,25.6389]
[1719420255839,20.0,136.54,136.5,27.1]
[1719420255840,20.0,136.54,136.5,7.3256]
[1719420256137,27.324,136.54,136.49,7.3265]
[1719420256717,7.3244,136.53,136.49,7.3265]
[1719420256924,20.0,136.52,136.48,18.3168]
[1719420257127,20.0,136.52,136.48,45.4168]
[1719420257938,20.0,136.53,136.5,7.3259]
[1719420258235,20.0,136.54,136.5,7.3259]
[1719420258549,20.0,136.54,136.53,7.3243]
[1719420258725,27.3228,136.56,136.52,18.3122]
[1719420259239,27.3228,136.56,136.52,25.6371]
[1719420259532,20.0,136.56,136.52,25.6371]
[1719420259838,27.3228,136.56,136.52,25.6371]
[1719420260036,27.3228,136.56,136.49,18.315]
[1719420260037,7.3243,136.54,136.49,18.315]
[1719420260338,7.3234,136.55,136.5,7.4956]
[1719420260544,20.0,136.54,136.5,7.4956]
[1719420261242,20.0,136.54,136.51,7.3252]
[1719420261633,20.0,136.54,136.5,7.3258]
[1719420262443,20.0,136.54,136.51,25.639]
[1719420262623,20.0,136.55,136.51,25.639]
[1719420263032,27.3234,136.55,136.51,25.639]
[1719420266763,20.0,136.55,136.51,25.639]
[1719420268749,20.0,136.55,136.52,7.3248]
[1719420269249,20.0,136.55,136.51,25.6389]
[1719420271180,20.0,136.55,136.48,7.3266]
[1719420271331,37.3245,136.53,136.48,7.3266]
[1719420271659,20.0,136.52,136.48,7.3266]
[1719420272159,27.3251,136.52,136.47,25.6451]
[1719420272349,27.3251,136.52,136.47,18.3177]
[1719420273029,20.0,136.52,136.47,18.3177]
[1719420273349,20.0,136.52,136.47,45.4177]
[1719420273524,20.0,136.52,136.49,7.3262]
[1719420273945,30.0,136.51,136.49,7.3262]
[1719420274146,30.0,136.51,136.48,7.3268]
[1719420275439,20.0,136.52,136.48,7.3268]
[1719420276641,27.3249,136.52,136.48,7.3268]
[1719420276841,7.3258,136.51,136.47,18.3177]
[1719420277150,27.3263,136.5,136.45,25.6499]
[1719420277346,27.3266,136.49,136.45,25.6499]
[1719420277551,7.3262,136.5,136.45,25.6499]
[1719420277739,20.0,136.49,136.45,25.6499]
[1719420278759,27.3265,136.49,136.45,25.6499]
[1719420278945,27.3267,136.49,136.44,8.1804774]
[1719420280463,30.0,136.48,136.44,8.1804774]
[1719420280987,20.0,136.47,136.45,25.65]
[1719420281338,20.0,136.49,136.45,25.65]
[1719420281543,20.0,136.49,136.47,7.3276]
[1719420281736,20.0,136.5,136.47,7.3276]
[1719420282535,20.0,136.5,136.46,7.3279]
[1719420287267,20.0,136.5,136.47,7.3273]
[1719420287444,15.4995,136.54,136.48,7.3269]
[1719420287649,27.3248,136.53,136.49,18.3162]
[1719420288045,27.3248,136.53,136.49,25.6426]
[1719420288261,20.0,136.53,136.5,8.78925233]
[1719420288649,20.0,136.53,136.5,1.46345233]
[1719420288962,20.0,136.53,136.49,52.7426]
[1719420289165,20.0,136.53,136.5,7.3259]
[1719420289351,20.0,136.53,136.49,52.7425]
[1719420290258,27.3244,136.53,136.49,25.6425]
[1719420290449,7.325,136.52,136.48,7.327]
[1719420291574,27.3246,136.53,136.48,7.327]
[1719420291758,27.3246,136.53,136.49,7.3264]
[1719420291959,20.0,136.53,136.49,7.3264]
[1719420292569,20.0,136.53,136.48,45.4173]
[1719420292570,20.0,136.53,136.5,7.3258]
[1719420293477,20.0,136.53,136.51,7.3254]
[1719420293772,7.3235,136.55,136.5,52.7406]
[1719420293773,20.0,136.54,136.5,52.7406]
[1719420293958,27.3238,136.54,136.5,25.6406]
[1719420294158,27.3238,136.54,136.5,18.3148]
[1719420294458,7.3244,136.53,136.49,7.3263]
[1719420295970,7.3249,136.52,136.48,25.6445]
[1719420296176,27.1,136.52,136.47,7.3272]
[1719420296371,34.4251,136.52,136.48,7.3269]
[1719420296580,27.1,136.52,136.48,7.3269]
[1719420297256,34.4249,136.52,136.48,7.3269]